[Event "Titled Tuesday Blitz October 31 Early 2023"]
[White "EvgenyBurmakin"]
[Black "Mishra, Manoj"]
[BlackFideId "5006007"]
[WhiteElo "2389"]
[BlackElo "2179"]
[Result "0-1"]
[Round "5"]
[TimeControl "180+1"]
[Date "2023.10.31"]
[WhiteClock "0:00:09"]
[BlackClock "0:01:01"]
[Board "153"]

1. e4 {[%clk 0:03:00]}  c5 {[%clk 0:02:46]} 2. Nc3 {[%clk 0:02:58]}  d6 {[%clk 0:02:41]} 3. Nf3 {[%clk 0:02:57]}  Nf6 {[%clk 0:02:40]} 4. d4 {[%clk 0:02:57]}  cxd4 {[%clk 0:02:41]} 5. Nxd4 {[%clk 0:02:57]}  a6 {[%clk 0:02:42]} 6. Be3 {[%clk 0:02:56]}  Nbd7 {[%clk 0:02:35]} 7. f3 {[%clk 0:02:55]}  e6 {[%clk 0:02:35]} 8. Qd2 {[%clk 0:02:53]}  b5 {[%clk 0:02:35]} 9. a3 {[%clk 0:02:51]}  Bb7 {[%clk 0:02:35]} 10. O-O-O {[%clk 0:02:45]}  Be7 {[%clk 0:02:27]} 11. Be2 {[%clk 0:02:38]}  Qa5 {[%clk 0:02:25]} 12. Kb1 {[%clk 0:02:36]}  Rc8 {[%clk 0:02:24]} 13. g4 {[%clk 0:02:24]}  Nb6 {[%clk 0:02:16]} 14. Ncxb5 {[%clk 0:01:40]}  Qxd2 {[%clk 0:02:09]} 15. Rxd2 {[%clk 0:01:41]}  axb5 {[%clk 0:02:08]} 16. Nxb5 {[%clk 0:01:41]}  Rc6 {[%clk 0:02:00]} 17. Na7 {[%clk 0:01:33]}  Nc4 {[%clk 0:01:54]} 18. Rd4 {[%clk 0:01:05]}  Nxe3 {[%clk 0:01:44]} 19. Bb5 {[%clk 0:01:05]}  Kd7 {[%clk 0:01:34]} 20. g5 {[%clk 0:00:52]}  Nh5 {[%clk 0:01:15]} 21. Rg1 {[%clk 0:00:48]}  Nf4 {[%clk 0:01:11]} 22. Nxc6 {[%clk 0:00:33]}  Bxc6 {[%clk 0:01:10]} 23. Bxc6+ {[%clk 0:00:33]}  Kxc6 {[%clk 0:01:11]} 24. h4 {[%clk 0:00:29]}  Ne2 {[%clk 0:01:10]} 25. Rd3 {[%clk 0:00:19]}  Nxg1 {[%clk 0:01:07]} 26. Rxe3 {[%clk 0:00:19]}  h6 {[%clk 0:01:06]} 27. f4 {[%clk 0:00:18]}  hxg5 {[%clk 0:01:07]} 28. hxg5 {[%clk 0:00:18]}  Rh4 {[%clk 0:01:04]} 29. Re1 {[%clk 0:00:14]}  Nf3 {[%clk 0:01:04]} 30. Rf1 {[%clk 0:00:14]}  Rxf4 {[%clk 0:01:04]} 31. Ka2 {[%clk 0:00:13]}  Bxg5 {[%clk 0:01:03]} 32. a4 {[%clk 0:00:13]}  Rxe4 {[%clk 0:01:02]} 33. Rxf3 {[%clk 0:00:13]}  Rxa4+ {[%clk 0:01:01]} 34. Kb3 {[%clk 0:00:14]}  Rf4 {[%clk 0:01:01]} 35. Rg3 {[%clk 0:00:13]}  Bf6 {[%clk 0:01:01]} 36. c3 {[%clk 0:00:09]}  g5 {[%clk 0:01:01]} 0-1


[Site "https://www.chess.com"]

[Event "Titled Tuesday Blitz October 31 Early 2023"]
[White "knightinshiningarmour16"]
[Black "UK_23"]
[WhiteElo "2175"]
[BlackElo "2388"]
[Result "0-1"]
[Round "5"]
[TimeControl "180+1"]
[Date "2023.10.31"]
[WhiteClock "0:00:10"]
[BlackClock "0:00:25"]
[Board "154"]

1. d4 {[%clk 0:02:59]}  d5 {[%clk 0:02:59]} 2. Nf3 {[%clk 0:02:57]}  Nf6 {[%clk 0:02:59]} 3. c4 {[%clk 0:02:56]}  e6 {[%clk 0:02:59]} 4. Nc3 {[%clk 0:02:55]}  Be7 {[%clk 0:02:59]} 5. Bg5 {[%clk 0:02:55]}  O-O {[%clk 0:02:59]} 6. e3 {[%clk 0:02:55]}  b6 {[%clk 0:03:00]} 7. cxd5 {[%clk 0:02:55]}  Nxd5 {[%clk 0:03:01]} 8. Bxe7 {[%clk 0:02:52]}  Qxe7 {[%clk 0:03:02]} 9. Nxd5 {[%clk 0:02:51]}  exd5 {[%clk 0:03:03]} 10. Be2 {[%clk 0:02:50]}  c5 {[%clk 0:03:03]} 11. O-O {[%clk 0:02:49]}  Be6 {[%clk 0:03:03]} 12. Rc1 {[%clk 0:02:42]}  Rc8 {[%clk 0:03:02]} 13. Ne5 {[%clk 0:02:34]}  Qb7 {[%clk 0:02:57]} 14. Bd3 {[%clk 0:02:30]}  Nd7 {[%clk 0:02:55]} 15. Qh5 {[%clk 0:02:22]}  g6 {[%clk 0:02:26]} 16. Qh6 {[%clk 0:02:12]}  Nxe5 {[%clk 0:02:23]} 17. dxe5 {[%clk 0:02:11]}  Qd7 {[%clk 0:02:20]} 18. f4 {[%clk 0:02:08]}  Bf5 {[%clk 0:02:20]} 19. Be2 {[%clk 0:02:03]}  d4 {[%clk 0:02:11]} 20. Bf3 {[%clk 0:02:03]}  dxe3 {[%clk 0:01:55]} 21. Bxa8 {[%clk 0:02:02]}  Rxa8 {[%clk 0:01:56]} 22. h3 {[%clk 0:01:59]}  e2 {[%clk 0:01:54]} 23. Rfe1 {[%clk 0:01:57]}  Qd4+ {[%clk 0:01:54]} 24. Kh2 {[%clk 0:01:56]}  Qf2 {[%clk 0:01:50]} 25. Qg5 {[%clk 0:01:52]}  Be4 {[%clk 0:01:36]} 26. Qg3 {[%clk 0:01:38]}  Qxg3+ {[%clk 0:01:36]} 27. Kxg3 {[%clk 0:01:39]}  Bd3 {[%clk 0:01:36]} 28. Rc3 {[%clk 0:01:35]}  c4 {[%clk 0:01:37]} 29. Kf3 {[%clk 0:01:34]}  b5 {[%clk 0:01:35]} 30. b3 {[%clk 0:01:29]}  b4 {[%clk 0:01:27]} 31. Rcc1 {[%clk 0:00:54]}  c3 {[%clk 0:01:23]} 32. a3 {[%clk 0:00:54]}  a5 {[%clk 0:01:23]} 33. Kf2 {[%clk 0:00:47]}  Rd8 {[%clk 0:01:15]} 34. axb4 {[%clk 0:00:46]}  axb4 {[%clk 0:01:16]} 35. Ra1 {[%clk 0:00:46]}  Bb5 {[%clk 0:01:08]} 36. Ra5 {[%clk 0:00:45]}  Rb8 {[%clk 0:00:43]} 37. Rc1 {[%clk 0:00:34]}  h5 {[%clk 0:00:41]} 38. g4 {[%clk 0:00:28]}  h4 {[%clk 0:00:40]} 39. f5 {[%clk 0:00:27]}  gxf5 {[%clk 0:00:39]} 40. gxf5 {[%clk 0:00:28]}  Kf8 {[%clk 0:00:39]} 41. f6 {[%clk 0:00:27]}  Ke8 {[%clk 0:00:38]} 42. Rg1 {[%clk 0:00:26]}  Kd7 {[%clk 0:00:37]} 43. Ra7+ {[%clk 0:00:26]}  Ke6 {[%clk 0:00:37]} 44. Re7+ {[%clk 0:00:25]}  Kf5 {[%clk 0:00:38]} 45. Rxf7 {[%clk 0:00:21]}  Kxe5 {[%clk 0:00:36]} 46. Rg5+ {[%clk 0:00:14]}  Ke6 {[%clk 0:00:26]} 47. Rc7 {[%clk 0:00:11]}  Kxf6 {[%clk 0:00:24]} 48. Rg4 {[%clk 0:00:11]}  Bd3 {[%clk 0:00:17]} 49. Rxh4 {[%clk 0:00:11]}  Re8 {[%clk 0:00:16]} 50. Rf4+ {[%clk 0:00:10]}  Kg5 {[%clk 0:00:16]} 51. Ke1 {[%clk 0:00:08]}  Kxf4 {[%clk 0:00:16]} 52. Rf7+ {[%clk 0:00:08]}  Ke3 {[%clk 0:00:16]} 53. h4 {[%clk 0:00:07]}  Rg8 {[%clk 0:00:16]} 54. Re7+ {[%clk 0:00:07]}  Be4 {[%clk 0:00:16]} 55. Rxe4+ {[%clk 0:00:07]}  Kxe4 {[%clk 0:00:17]} 56. Kxe2 {[%clk 0:00:07]}  Rh8 {[%clk 0:00:18]} 57. h5 {[%clk 0:00:07]}  Rxh5 {[%clk 0:00:18]} 58. Kd1 {[%clk 0:00:07]}  Ra5 {[%clk 0:00:19]} 59. Kc1 {[%clk 0:00:08]}  Ra3 {[%clk 0:00:20]} 60. Kc2 {[%clk 0:00:08]}  Kd4 {[%clk 0:00:21]} 61. Kb1 {[%clk 0:00:07]}  Rxb3+ {[%clk 0:00:21]} 62. Kc2 {[%clk 0:00:08]}  Ra3 {[%clk 0:00:21]} 63. Kc1 {[%clk 0:00:09]}  Kc4 {[%clk 0:00:22]} 64. Kb1 {[%clk 0:00:10]}  b3 {[%clk 0:00:22]} 65. Kc1 {[%clk 0:00:10]}  Kb4 {[%clk 0:00:23]} 66. Kb1 {[%clk 0:00:10]}  Ra8 {[%clk 0:00:24]} 67. Kc1 {[%clk 0:00:10]}  Rh8 {[%clk 0:00:25]} 68. Kd1 {[%clk 0:00:10]}  Ka3 {[%clk 0:00:25]} 69. Kc1 {[%clk 0:00:10]}  Rh1# {[%clk 0:00:25]} 0-1


[Site "https://www.chess.com"]

[Event "Titled Tuesday Blitz October 31 Early 2023"]
[White "Silvestre, Christian"]
[Black "Fernandez, Michael"]
[WhiteFideId "30956269"]
[BlackFideId "5803560"]
[WhiteElo "2100"]
[BlackElo "2380"]
[Result "0-1"]
[Round "5"]
[TimeControl "180+1"]
[Date "2023.10.31"]
[WhiteClock "0:00:00"]
[BlackClock "0:00:07"]
[Board "157"]

1. e4 {[%clk 0:02:56]}  c6 {[%clk 0:03:00]} 2. Nc3 {[%clk 0:02:53]}  d5 {[%clk 0:03:00]} 3. d3 {[%clk 0:02:49]}  dxe4 {[%clk 0:02:50]} 4. dxe4 {[%clk 0:02:44]}  Qxd1+ {[%clk 0:02:48]} 5. Nxd1 {[%clk 0:02:37]}  e5 {[%clk 0:02:45]} 6. Bc4 {[%clk 0:02:35]}  Bb4+ {[%clk 0:02:38]} 7. c3 {[%clk 0:02:28]}  Bc5 {[%clk 0:02:29]} 8. Be3 {[%clk 0:02:27]}  Nd7 {[%clk 0:02:25]} 9. Nf3 {[%clk 0:02:24]}  f6 {[%clk 0:02:14]} 10. a4 {[%clk 0:02:15]}  a5 {[%clk 0:02:07]} 11. O-O {[%clk 0:02:08]}  Ne7 {[%clk 0:01:58]} 12. Nh4 {[%clk 0:01:45]}  g5 {[%clk 0:01:43]} 13. Nf3 {[%clk 0:01:41]}  Kd8 {[%clk 0:01:26]} 14. Nd2 {[%clk 0:01:33]}  Kc7 {[%clk 0:01:25]} 15. Nb3 {[%clk 0:01:31]}  Bxe3 {[%clk 0:01:25]} 16. Nxe3 {[%clk 0:01:29]}  Nb6 {[%clk 0:01:18]} 17. Bd3 {[%clk 0:01:24]}  Rd8 {[%clk 0:01:13]} 18. Rfd1 {[%clk 0:01:18]}  Be6 {[%clk 0:01:12]} 19. Nc5 {[%clk 0:01:15]}  Bf7 {[%clk 0:01:12]} 20. Bc2 {[%clk 0:01:10]}  Nd7 {[%clk 0:01:04]} 21. Nxd7 {[%clk 0:01:02]}  Rxd7 {[%clk 0:01:05]} 22. Ng4 {[%clk 0:01:00]}  Ng8 {[%clk 0:00:54]} 23. Rxd7+ {[%clk 0:00:51]}  Kxd7 {[%clk 0:00:55]} 24. Kf1 {[%clk 0:00:49]}  Be6 {[%clk 0:00:53]} 25. Ne3 {[%clk 0:00:46]}  Ne7 {[%clk 0:00:51]} 26. Ke2 {[%clk 0:00:44]}  Kc7 {[%clk 0:00:49]} 27. Rd1 {[%clk 0:00:43]}  b5 {[%clk 0:00:45]} 28. axb5 {[%clk 0:00:34]}  cxb5 {[%clk 0:00:46]} 29. Bd3 {[%clk 0:00:27]}  b4 {[%clk 0:00:41]} 30. cxb4 {[%clk 0:00:26]}  axb4 {[%clk 0:00:42]} 31. Bc4 {[%clk 0:00:25]}  Bxc4+ {[%clk 0:00:40]} 32. Nxc4 {[%clk 0:00:25]}  Nc6 {[%clk 0:00:40]} 33. Kf3 {[%clk 0:00:21]}  Nd4+ {[%clk 0:00:39]} 34. Kg4 {[%clk 0:00:21]}  Kc6 {[%clk 0:00:33]} 35. Rc1 {[%clk 0:00:18]}  Kb5 {[%clk 0:00:26]} 36. Nd6+ {[%clk 0:00:17]}  Kb6 {[%clk 0:00:27]} 37. Nc4+ {[%clk 0:00:18]}  Kb5 {[%clk 0:00:26]} 38. Nd6+ {[%clk 0:00:18]}  Kb6 {[%clk 0:00:26]} 39. Nc4+ {[%clk 0:00:18]}  Kb7 {[%clk 0:00:26]} 40. Nd6+ {[%clk 0:00:17]}  Kb8 {[%clk 0:00:22]} 41. Rc8+ {[%clk 0:00:14]}  Ka7 {[%clk 0:00:22]} 42. Rxa8+ {[%clk 0:00:13]}  Kxa8 {[%clk 0:00:23]} 43. Ne8 {[%clk 0:00:13]}  Ne2 {[%clk 0:00:17]} 44. Nxf6 {[%clk 0:00:13]}  Nc1 {[%clk 0:00:18]} 45. Nd7 {[%clk 0:00:12]}  Nd3 {[%clk 0:00:18]} 46. Nb6+ {[%clk 0:00:12]}  Kb7 {[%clk 0:00:17]} 47. Nc4 {[%clk 0:00:13]}  Kc6 {[%clk 0:00:15]} 48. b3 {[%clk 0:00:12]}  Kc5 {[%clk 0:00:16]} 49. Kxg5 {[%clk 0:00:12]}  Kd4 {[%clk 0:00:16]} 50. f4 {[%clk 0:00:09]}  exf4 {[%clk 0:00:14]} 51. Kf5 {[%clk 0:00:09]}  Nc5 {[%clk 0:00:14]} 52. e5 {[%clk 0:00:09]}  Nxb3 {[%clk 0:00:11]} 53. Nb6 {[%clk 0:00:07]}  Kc5 {[%clk 0:00:07]} 54. e6 {[%clk 0:00:05]}  Nd4+ {[%clk 0:00:05]} 55. Kf6 {[%clk 0:00:05]}  Nxe6 {[%clk 0:00:05]} 56. Na4+ {[%clk 0:00:05]}  Kb5 {[%clk 0:00:05]} 57. Kxe6 {[%clk 0:00:05]}  Kxa4 {[%clk 0:00:06]} 58. Kf5 {[%clk 0:00:05]}  b3 {[%clk 0:00:06]} 59. Kxf4 {[%clk 0:00:00]}  b2 {[%clk 0:00:07]} 0-1


[Site "https://www.chess.com"]

[Event "Titled Tuesday Blitz October 31 Early 2023"]
[White "Bobomurodova, Maftuna"]
[Black "Mirza, Diana"]
[WhiteFideId "14207400"]
[BlackFideId "2503999"]
[WhiteElo "2330"]
[BlackElo "1954"]
[Result "1-0"]
[Round "5"]
[TimeControl "180+1"]
[Date "2023.10.31"]
[WhiteClock "0:01:44"]
[BlackClock "0:00:02"]
[Board "161"]

1. e4 {[%clk 0:03:00]}  c5 {[%clk 0:01:21]} 2. Nf3 {[%clk 0:02:59]}  e6 {[%clk 0:01:02]} 3. g3 {[%clk 0:02:57]}  Nc6 {[%clk 0:01:00]} 4. Bg2 {[%clk 0:02:55]}  Nf6 {[%clk 0:00:59]} 5. Qe2 {[%clk 0:02:54]}  Qc7 {[%clk 0:00:59]} 6. O-O {[%clk 0:02:53]}  Be7 {[%clk 0:00:59]} 7. c3 {[%clk 0:02:53]}  O-O {[%clk 0:00:55]} 8. d4 {[%clk 0:02:52]}  cxd4 {[%clk 0:00:55]} 9. cxd4 {[%clk 0:02:52]}  d5 {[%clk 0:00:54]} 10. e5 {[%clk 0:02:43]}  Nd7 {[%clk 0:00:54]} 11. Nc3 {[%clk 0:02:42]}  a6 {[%clk 0:00:47]} 12. a4 {[%clk 0:02:38]}  b6 {[%clk 0:00:46]} 13. h4 {[%clk 0:02:35]}  Bb7 {[%clk 0:00:47]} 14. h5 {[%clk 0:02:35]}  Rac8 {[%clk 0:00:48]} 15. h6 {[%clk 0:02:35]}  f6 {[%clk 0:00:46]} 16. hxg7 {[%clk 0:02:35]}  Kxg7 {[%clk 0:00:47]} 17. exf6+ {[%clk 0:02:31]}  Bxf6 {[%clk 0:00:46]} 18. Qxe6 {[%clk 0:02:29]}  Nxd4 {[%clk 0:00:44]} 19. Nxd4 {[%clk 0:02:26]}  Bxd4 {[%clk 0:00:45]} 20. Qg4+ {[%clk 0:02:26]}  Kh8 {[%clk 0:00:44]} 21. Qxd4+ {[%clk 0:02:26]}  Nf6 {[%clk 0:00:35]} 22. Bg5 {[%clk 0:02:24]}  Qd6 {[%clk 0:00:30]} 23. Bf4 {[%clk 0:02:17]}  Qd7 {[%clk 0:00:22]} 24. Be5 {[%clk 0:02:16]}  Qf7 {[%clk 0:00:19]} 25. Nxd5 {[%clk 0:02:09]}  Bxd5 {[%clk 0:00:16]} 26. Bxd5 {[%clk 0:02:08]}  Qg6 {[%clk 0:00:16]} 27. Rac1 {[%clk 0:02:04]}  Rcd8 {[%clk 0:00:16]} 28. Rc6 {[%clk 0:01:54]}  Kg7 {[%clk 0:00:08]} 29. Rfc1 {[%clk 0:01:47]}  h5 {[%clk 0:00:08]} 30. Rc7+ {[%clk 0:01:46]}  Kh6 {[%clk 0:00:02]} 31. Bf4+ {[%clk 0:01:44]} 1-0


[Site "https://www.chess.com"]

[Event "Titled Tuesday Blitz October 31 Early 2023"]
[White "Szente Varga, Fruzsina"]
[Black "IsaqueGoncalvesSanto"]
[WhiteFideId "712264"]
[WhiteElo "2325"]
[BlackElo "1802"]
[Result "1-0"]
[Round "5"]
[TimeControl "180+1"]
[Date "2023.10.31"]
[WhiteClock "0:00:13"]
[BlackClock "0:00:00"]
[Board "162"]

1. e4 {[%clk 0:02:59]}  e6 {[%clk 0:02:57]} 2. d4 {[%clk 0:02:59]}  d5 {[%clk 0:02:56]} 3. Nd2 {[%clk 0:02:26]}  Nf6 {[%clk 0:02:54]} 4. e5 {[%clk 0:02:19]}  Nfd7 {[%clk 0:02:54]} 5. f4 {[%clk 0:02:05]}  c5 {[%clk 0:02:54]} 6. c3 {[%clk 0:02:05]}  Nc6 {[%clk 0:02:53]} 7. Ngf3 {[%clk 0:02:00]}  f6 {[%clk 0:02:48]} 8. Bb5 {[%clk 0:01:59]}  cxd4 {[%clk 0:02:45]} 9. cxd4 {[%clk 0:01:59]}  Qb6 {[%clk 0:02:44]} 10. Bxc6 {[%clk 0:01:54]}  bxc6 {[%clk 0:02:44]} 11. O-O {[%clk 0:01:54]}  fxe5 {[%clk 0:02:40]} 12. fxe5 {[%clk 0:01:39]}  Nxe5 {[%clk 0:02:35]} 13. Nb3 {[%clk 0:01:26]}  Nd7 {[%clk 0:01:57]} 14. Ng5 {[%clk 0:01:23]}  Nf6 {[%clk 0:01:57]} 15. Rxf6 {[%clk 0:01:01]}  gxf6 {[%clk 0:01:56]} 16. Qh5+ {[%clk 0:01:01]}  Kd7 {[%clk 0:01:25]} 17. Qf7+ {[%clk 0:01:01]}  Be7 {[%clk 0:01:21]} 18. Qxe6+ {[%clk 0:00:47]}  Kd8 {[%clk 0:01:08]} 19. Nf7+ {[%clk 0:00:46]}  Ke8 {[%clk 0:01:06]} 20. Nd6+ {[%clk 0:00:43]}  Kd8 {[%clk 0:01:01]} 21. Nxc8 {[%clk 0:00:37]}  Rxc8 {[%clk 0:01:00]} 22. Bf4 {[%clk 0:00:32]}  c5 {[%clk 0:00:47]} 23. Qxd5+ {[%clk 0:00:30]}  Ke8 {[%clk 0:00:45]} 24. dxc5 {[%clk 0:00:25]}  Bxc5+ {[%clk 0:00:42]} 25. Kh1 {[%clk 0:00:23]}  Be7 {[%clk 0:00:25]} 26. Re1 {[%clk 0:00:19]}  Rf8 {[%clk 0:00:20]} 27. Qh5+ {[%clk 0:00:18]}  Rf7 {[%clk 0:00:18]} 28. Qg4 {[%clk 0:00:16]}  Qc6 {[%clk 0:00:14]} 29. h3 {[%clk 0:00:14]}  Kf8 {[%clk 0:00:12]} 30. Bh6+ {[%clk 0:00:14]}  Ke8 {[%clk 0:00:09]} 31. Qg8+ {[%clk 0:00:14]}  Kd7 {[%clk 0:00:06]} 32. Qxf7 {[%clk 0:00:14]}  Qd6 {[%clk 0:00:00]} 33. Qxh7 {[%clk 0:00:13]} 1-0


[Site "https://www.chess.com"]

[Event "Titled Tuesday Blitz October 31 Early 2023"]
[White "Skiadopoulos, Nikolaos"]
[Black "Fominykh, Maria"]
[WhiteFideId "4200772"]
[BlackFideId "4142411"]
[WhiteElo "1795"]
[BlackElo "2261"]
[Result "0-1"]
[Round "5"]
[TimeControl "180+1"]
[Date "2023.10.31"]
[WhiteClock "0:00:00"]
[BlackClock "0:00:56"]
[Board "163"]

1. e4 {[%clk 0:02:59]}  d6 {[%clk 0:02:57]} 2. d4 {[%clk 0:02:58]}  Nf6 {[%clk 0:02:58]} 3. Nc3 {[%clk 0:02:58]}  e5 {[%clk 0:02:59]} 4. Nf3 {[%clk 0:02:54]}  Nbd7 {[%clk 0:02:59]} 5. Bc4 {[%clk 0:02:51]}  Be7 {[%clk 0:02:59]} 6. g4 {[%clk 0:02:49]}  Nxg4 {[%clk 0:02:53]} 7. Rg1 {[%clk 0:02:49]}  Nb6 {[%clk 0:02:50]} 8. Bb3 {[%clk 0:02:41]}  Bh4 {[%clk 0:02:34]} 9. Rg2 {[%clk 0:02:34]}  O-O {[%clk 0:02:19]} 10. h3 {[%clk 0:02:24]}  Nxf2 {[%clk 0:02:16]} 11. Rxf2 {[%clk 0:02:17]}  Bxf2+ {[%clk 0:02:14]} 12. Kxf2 {[%clk 0:02:16]}  exd4 {[%clk 0:02:08]} 13. Qxd4 {[%clk 0:02:12]}  c5 {[%clk 0:01:57]} 14. Qd3 {[%clk 0:01:38]}  Bxh3 {[%clk 0:01:51]} 15. Bf4 {[%clk 0:01:28]}  c4 {[%clk 0:01:25]} 16. Bxc4 {[%clk 0:01:26]}  Nxc4 {[%clk 0:01:26]} 17. Qxc4 {[%clk 0:01:26]}  Qb6+ {[%clk 0:01:13]} 18. Be3 {[%clk 0:01:20]}  Qxb2 {[%clk 0:01:11]} 19. Rh1 {[%clk 0:00:48]}  Rac8 {[%clk 0:00:58]} 20. Qb3 {[%clk 0:00:05]}  Qxc3 {[%clk 0:00:57]} 21. Qxc3 {[%clk 0:00:04]}  Rxc3 {[%clk 0:00:56]} 22. Rxh3 {[%clk 0:00:04]}  Rxc2+ {[%clk 0:00:57]} 23. Kg3 {[%clk 0:00:00]}  Rxa2 {[%clk 0:00:56]} 0-1


[Site "https://www.chess.com"]

[Event "Titled Tuesday Blitz October 31 Early 2023"]
[White "Zaichenko, Daria"]
[Black "Ehlvest, Jaan"]
[WhiteFideId "4197453"]
[BlackFideId "4500016"]
[WhiteElo "2250"]
[BlackElo "2649"]
[Result "0-1"]
[Round "5"]
[TimeControl "180+1"]
[Date "2023.10.31"]
[WhiteClock "0:01:35"]
[BlackClock "0:02:17"]
[Board "165"]

1. e4 {[%clk 0:02:58]}  g6 {[%clk 0:02:58]} 2. d4 {[%clk 0:02:56]}  Bg7 {[%clk 0:02:58]} 3. f4 {[%clk 0:02:56]}  d5 {[%clk 0:02:56]} 4. e5 {[%clk 0:02:56]}  c5 {[%clk 0:02:55]} 5. c3 {[%clk 0:02:55]}  Nc6 {[%clk 0:02:55]} 6. Nf3 {[%clk 0:02:54]}  Nh6 {[%clk 0:02:55]} 7. Bd3 {[%clk 0:02:53]}  O-O {[%clk 0:02:54]} 8. O-O {[%clk 0:02:53]}  cxd4 {[%clk 0:02:54]} 9. cxd4 {[%clk 0:02:52]}  Bg4 {[%clk 0:02:54]} 10. Be3 {[%clk 0:02:50]}  f6 {[%clk 0:02:53]} 11. h3 {[%clk 0:02:45]}  Nf5 {[%clk 0:02:49]} 12. Bxf5 {[%clk 0:02:41]}  Bxf5 {[%clk 0:02:49]} 13. Nc3 {[%clk 0:02:39]}  Be4 {[%clk 0:02:47]} 14. Qb3 {[%clk 0:02:29]}  Na5 {[%clk 0:02:41]} 15. Qb4 {[%clk 0:02:23]}  Bxf3 {[%clk 0:02:40]} 16. Rxf3 {[%clk 0:02:22]}  fxe5 {[%clk 0:02:40]} 17. dxe5 {[%clk 0:02:19]}  e6 {[%clk 0:02:37]} 18. Bc5 {[%clk 0:02:14]}  Rf7 {[%clk 0:02:36]} 19. Nxd5 {[%clk 0:01:55]}  Nc6 {[%clk 0:02:28]} 20. Nf6+ {[%clk 0:01:40]}  Bxf6 {[%clk 0:02:26]} 21. Qb3 {[%clk 0:01:39]}  Be7 {[%clk 0:02:18]} 22. Rd1 {[%clk 0:01:35]}  Bxc5+ {[%clk 0:02:17]} 0-1


[Site "https://www.chess.com"]

[Event "Titled Tuesday Blitz October 31 Early 2023"]
[White "Iskusnyh, Sergei"]
[Black "Pinales Roussel, Gabriel"]
[WhiteFideId "4120027"]
[BlackFideId "3101762"]
[WhiteElo "2569"]
[BlackElo "2180"]
[Result "1-0"]
[Round "5"]
[TimeControl "180+1"]
[Date "2023.10.31"]
[WhiteClock "0:00:53"]
[BlackClock "0:00:11"]
[Board "167"]

1. d4 {[%clk 0:03:00]}  c5 {[%clk 0:02:59]} 2. d5 {[%clk 0:03:00]}  e5 {[%clk 0:03:00]} 3. e4 {[%clk 0:02:57]}  d6 {[%clk 0:02:59]} 4. Nc3 {[%clk 0:02:57]}  Be7 {[%clk 0:02:59]} 5. Be3 {[%clk 0:02:53]}  a6 {[%clk 0:02:56]} 6. a4 {[%clk 0:02:50]}  Bg5 {[%clk 0:02:55]} 7. Qd2 {[%clk 0:02:43]}  Bxe3 {[%clk 0:02:54]} 8. Qxe3 {[%clk 0:02:44]}  Ne7 {[%clk 0:02:52]} 9. Be2 {[%clk 0:02:43]}  Ng6 {[%clk 0:02:50]} 10. g3 {[%clk 0:02:21]}  h5 {[%clk 0:02:48]} 11. h4 {[%clk 0:02:20]}  Qf6 {[%clk 0:02:12]} 12. Kf1 {[%clk 0:02:07]}  Nd7 {[%clk 0:01:39]} 13. a5 {[%clk 0:02:04]}  b5 {[%clk 0:01:12]} 14. axb6 {[%clk 0:01:58]}  Nxb6 {[%clk 0:01:12]} 15. b4 {[%clk 0:01:53]}  Nd7 {[%clk 0:01:10]} 16. Nb5 {[%clk 0:01:42]}  Kd8 {[%clk 0:00:26]} 17. Qa3 {[%clk 0:01:23]}  Bb7 {[%clk 0:00:21]} 18. Qa5+ {[%clk 0:01:20]}  Ke7 {[%clk 0:00:19]} 19. Nc7 {[%clk 0:01:15]}  Rac8 {[%clk 0:00:17]} 20. Nxa6 {[%clk 0:01:14]}  cxb4 {[%clk 0:00:17]} 21. Qxb4 {[%clk 0:01:07]}  Rxc2 {[%clk 0:00:16]} 22. Qxb7 {[%clk 0:01:04]}  Rhc8 {[%clk 0:00:13]} 23. Nh3 {[%clk 0:00:59]}  Rxe2 {[%clk 0:00:11]} 24. Kxe2 {[%clk 0:00:54]}  Rc2+ {[%clk 0:00:12]} 25. Kf1 {[%clk 0:00:54]}  Qxf2+ {[%clk 0:00:11]} 26. Nxf2 {[%clk 0:00:53]} 1-0


[Site "https://www.chess.com"]

[Event "Titled Tuesday Blitz October 31 Early 2023"]
[White "Mirzanurov, Bulat"]
[Black "Aggelis, Nikolaos"]
[WhiteFideId "4184521"]
[BlackFideId "4213220"]
[WhiteElo "2175"]
[BlackElo "2451"]
[Result "1-0"]
[Round "5"]
[TimeControl "180+1"]
[Date "2023.10.31"]
[WhiteClock "0:00:23"]
[BlackClock "0:01:45"]
[Board "168"]

1. e4 {[%clk 0:03:00]}  c6 {[%clk 0:02:56]} 2. d4 {[%clk 0:02:59]}  d5 {[%clk 0:02:57]} 3. e5 {[%clk 0:02:57]}  c5 {[%clk 0:02:57]} 4. dxc5 {[%clk 0:02:55]}  e6 {[%clk 0:02:57]} 5. Bd3 {[%clk 0:02:55]}  Bxc5 {[%clk 0:02:56]} 6. Qg4 {[%clk 0:02:54]}  Bf8 {[%clk 0:02:54]} 7. Qe2 {[%clk 0:02:48]}  Ne7 {[%clk 0:02:54]} 8. Nf3 {[%clk 0:02:47]}  Nbc6 {[%clk 0:02:54]} 9. Bg5 {[%clk 0:02:45]}  Qc7 {[%clk 0:02:53]} 10. O-O {[%clk 0:02:30]}  Ng6 {[%clk 0:02:54]} 11. Re1 {[%clk 0:02:30]}  Be7 {[%clk 0:02:53]} 12. Bxe7 {[%clk 0:02:27]}  Qxe7 {[%clk 0:02:54]} 13. g3 {[%clk 0:02:19]}  O-O {[%clk 0:02:54]} 14. h4 {[%clk 0:02:15]}  Qb4 {[%clk 0:02:41]} 15. h5 {[%clk 0:01:52]}  Nge7 {[%clk 0:02:41]} 16. Nbd2 {[%clk 0:01:43]}  h6 {[%clk 0:02:39]} 17. Nb3 {[%clk 0:01:22]}  Qg4 {[%clk 0:02:38]} 18. Nfd4 {[%clk 0:01:11]}  Nxd4 {[%clk 0:02:37]} 19. Qxg4 {[%clk 0:01:10]}  Ndc6 {[%clk 0:02:28]} 20. f4 {[%clk 0:01:07]}  Bd7 {[%clk 0:02:27]} 21. Nc5 {[%clk 0:01:04]}  Bc8 {[%clk 0:02:26]} 22. c3 {[%clk 0:01:02]}  b6 {[%clk 0:02:26]} 23. Nb3 {[%clk 0:01:02]}  Kh8 {[%clk 0:02:27]} 24. Nd4 {[%clk 0:01:02]}  Nxd4 {[%clk 0:02:26]} 25. cxd4 {[%clk 0:01:03]}  Nc6 {[%clk 0:02:26]} 26. f5 {[%clk 0:01:01]}  exf5 {[%clk 0:02:27]} 27. Qf4 {[%clk 0:00:59]}  Be6 {[%clk 0:02:25]} 28. Rac1 {[%clk 0:00:57]}  Rac8 {[%clk 0:02:24]} 29. Rc2 {[%clk 0:00:48]}  Nb4 {[%clk 0:02:13]} 30. Rxc8 {[%clk 0:00:47]}  Rxc8 {[%clk 0:02:10]} 31. Bxf5 {[%clk 0:00:44]}  Rc4 {[%clk 0:01:53]} 32. Bxe6 {[%clk 0:00:42]}  fxe6 {[%clk 0:01:54]} 33. Rc1 {[%clk 0:00:35]}  Nc2 {[%clk 0:01:41]} 34. Qf2 {[%clk 0:00:22]}  Nb4 {[%clk 0:01:42]} 35. Rxc4 {[%clk 0:00:21]}  dxc4 {[%clk 0:01:43]} 36. Qf8+ {[%clk 0:00:21]}  Kh7 {[%clk 0:01:43]} 37. Qxb4 {[%clk 0:00:22]}  b5 {[%clk 0:01:43]} 38. Qxb5 {[%clk 0:00:22]}  g6 {[%clk 0:01:44]} 39. Qxc4 {[%clk 0:00:23]}  gxh5 {[%clk 0:01:44]} 40. Qxe6 {[%clk 0:00:23]}  Kg7 {[%clk 0:01:45]} 41. Qf6+ {[%clk 0:00:23]}  Kh7 {[%clk 0:01:44]} 42. e6 {[%clk 0:00:23]}  Kg8 {[%clk 0:01:45]} 43. e7 {[%clk 0:00:23]}  Kh7 {[%clk 0:01:46]} 44. e8=Q {[%clk 0:00:23]}  h4 {[%clk 0:01:45]} 45. Qeh8# {[%clk 0:00:23]} 1-0


[Site "https://www.chess.com"]